bitfinex/quotes_SOLUSD_20240902
["timestamp","ask_amount","ask_price","bid_price","bid_amount"]
[1725256079485,7.7084,129.73,129.68,7.7111]
[1725256079690,20.0,129.72,129.68,7.7111]
[1725256079942,20.0,129.72,129.69,7.7103]
[1725256080088,20.0,129.72,129.7,7.71]
[1725256080287,20.0,129.74,129.7,7.71]
[1725256080478,19.2607,129.8,129.67,38.5585]
[1725256080689,30.0402194,129.8,129.75,7.7069]
[1725256080903,30.0402194,129.8,129.68,45.0]
[1725256080904,7.7053,129.78,129.73,19.2695]
[1725256081111,7.7053,129.78,129.73,26.9777]
[1725256081695,7.7047,129.79,129.74,7.7076]
[1725256082000,7.7064,129.77,129.73,19.2695]
[1725256082198,20.0,129.76,129.73,19.2695]
[1725256082515,27.7065,129.76,129.72,7.7088]
[1725256083306,20.0,129.76,129.72,7.7088]
[1725256083902,20.0,129.76,129.72,19.2712]
[1725256084215,14.0454,129.81,129.76,7.7064]
[1725256084711,14.0454,129.81,129.77,7.7055]
[1725256084712,6.3413,129.81,129.77,7.7055]
[1725256084885,7.7028,129.83,129.76,19.2654]
[1725256085211,7.7028,129.83,129.78,7.7048]
[1725256085515,55.13384173,129.85,129.76,19.2654]
[1725256085704,30.0402194,129.83,129.76,19.2654]
[1725256086180,7.704,129.81,129.76,26.9719]
[1725256087109,20.0,129.8,129.73,19.2705]
[1725256087429,7.7047,129.79,129.74,7.7075]
[1725256088188,20.0,129.78,129.74,7.7075]
[1725256088402,7.7061,129.77,129.72,26.9794]
[1725256088601,7.7061,129.77,129.72,19.271]
[1725256088805,27.7054,129.78,129.73,7.7083]
[1725256088997,20.0,129.78,129.74,7.7076]
[1725256090299,7.7078,129.74,129.69,14.1424]
[1725256090510,7.7072,129.75,129.7,7.7095]
[1725256090698,24.02776251,129.75,129.68,19.2781]
[1725256090899,24.02776251,129.75,129.68,26.9889]
[1725256090900,7.7083,129.73,129.68,26.9889]
[1725256091600,20.0,129.74,129.68,19.2781]
[1725256091802,7.7065,129.76,129.71,7.7094]
[1725256091997,20.0,129.75,129.72,7.7087]
[1725256092199,27.706,129.77,129.72,7.7087]
[1725256094896,20.0,129.77,129.71,7.7094]
[1725256095091,7.7066,129.76,129.71,7.7094]
[1725256095298,20.0,129.75,129.71,7.7094]
[1725256095793,6.2858,129.78,129.73,7.7083]
[1725256096007,6.2858,129.78,129.7,38.5488]
[1725256096194,20.0,129.77,129.71,60.8945]
[1725256096395,6.0807,129.81,129.74,19.2681]
[1725256096721,6.0807,129.81,129.76,7.7064]
[1725256096906,7.7041,129.8,129.74,19.2681]
[1725256097094,7.7048,129.79,129.74,19.2681]
[1725256097712,20.0,129.78,129.74,19.2681]
[1725256098411,20.0,129.78,129.74,26.9756]
[1725256099921,20.0,129.78,129.75,7.7069]
[1725256100095,20.0,129.79,129.75,7.7069]
[1725256100295,20.0,129.79,129.76,7.7064]
[1725256100521,20.0,129.8,129.76,7.7064]
[1725256100896,20.0,129.8,129.77,19.2648]
[1725256101093,20.0,129.8,129.77,26.9706]
[1725256101309,36.67608525,129.84,129.77,19.2648]
[1725256101594,7.7042,129.8,129.74,19.2689]
[1725256101809,30.04628525,129.82,129.74,19.2689]
[1725256102024,7.7037,129.81,129.74,19.2689]
[1725256102512,7.7041,129.8,129.75,7.707]
[1725256102724,7.7047,129.79,129.74,26.9765]
[1725256102907,20.0,129.78,129.74,26.9765]
[1725256103239,20.0,129.78,129.75,7.707]
[1725256104518,20.0,129.78,129.74,26.9766]
[1725256108123,20.0,129.78,129.71,35.1674]
[1725256108307,30.04628525,129.78,129.71,19.2729]
[1725256108513,20.0,129.77,129.71,19.2729]
[1725256109024,20.0,129.77,129.72,7.7088]
[1725256109725,0.12549,129.76,129.72,7.7088]
[1725256110231,0.12549,129.76,129.73,7.7082]
[1725256110807,26.4961,129.77,129.74,7.7073]
[1725256111007,26.4961,129.77,129.73,26.978]
[1725256111224,26.4961,129.77,129.74,7.7076]
[1725256113212,30.04628525,129.76,129.68,16.4281]
[1725256113414,30.04628525,129.74,129.7,7.7099]
[1725256113635,20.0,129.73,129.69,19.2757]
[1725256114011,24.05863638,129.72,129.7,7.7099]
[1725256114210,20.0,129.73,129.7,7.7099]
[1725256115726,20.0,129.73,129.71,7.7094]
[1725256115924,20.0,129.73,129.72,7.7089]
[1725256116110,6.4961,129.77,129.74,7.7076]
[1725256116305,30.42213638,129.8,129.7,38.5499]
[1725256116533,30.42213638,129.8,129.71,45.0]
[1725256116716,30.42213638,129.8,129.77,7.7059]
[1725256117222,30.42213638,129.8,129.76,7.7064]
[1725256117625,20.25098,129.79,129.76,7.7064]
[1725256117821,24.05863638,129.78,129.71,19.2724]
[1725256118131,20.0,129.77,129.71,19.2724]
[1725256119130,24.18412638,129.76,129.71,19.2724]
[1725256119512,20.0,129.75,129.71,19.2724]
[1725256120327,20.0,129.75,129.74,7.7077]
[1725256120530,20.0,129.75,129.71,19.2724]
[1725256120531,24.05863638,129.78,129.73,19.2694]
[1725256120825,30.42213638,129.8,129.75,19.2668]
[1725256121210,24.05863638,129.82,129.72,15.9702]
[1725256121709,24.05863638,129.82,129.79,26.9657]
[1725256122132,24.05863638,129.82,129.79,19.261]
[1725256122338,24.05863638,129.82,129.79,26.9657]
[1725256122512,20.0,129.81,129.79,26.9657]
[1725256122708,24.05863638,129.82,129.79,19.261]
[1725256122933,30.22183638,129.84,129.79,19.261]
[1725256123235,30.22183638,129.84,129.82,7.7029]
[1725256124120,6.1632,129.84,129.82,7.7029]
[1725256124310,36.01779548,129.87,129.83,7.7023]
[1725256124716,20.0,129.86,129.83,7.7022]
[1725256125019,36.01779548,129.87,129.81,19.2579]
[1725256126312,20.12549,129.86,129.84,7.7017]
[1725256126509,20.0,129.86,129.84,7.7017]
[1725256129432,30.01489548,129.89,129.86,7.7003]
[1725256129843,6.2037,129.9,129.87,7.6998]
[1725256130225,6.2037,129.9,129.88,7.6994]
[1725256131323,20.0,129.89,129.88,7.6994]
[1725256131518,50.01489548,129.89,129.85,19.252]
[1725256133318,50.01489548,129.89,129.86,7.7004]
[1725256137426,0.12549,129.88,129.85,26.953]
[1725256138745,0.12549,129.88,129.81,19.2575]
[1725256138957,30.01489548,129.87,129.84,7.7016]
[1725256139249,30.01489548,129.87,129.85,7.701]
[1725256140230,30.01489548,129.87,129.83,19.2548]
[1725256140430,20.0,129.89,129.85,7.7011]
[1725256140732,30.01489548,129.93,129.89,7.6987]
[1725256141434,30.01489548,129.93,129.9,7.6981]
[1725256142353,30.01489548,129.93,129.92,7.697]
[1725256142656,30.01489548,129.93,129.9,19.2443]
[1725256143432,21.5944,129.94,129.87,19.2499]
[1725256143630,30.01489548,129.91,129.87,26.9494]
[1725256143957,23.98206638,129.93,129.9,7.6981]
[1725256144127,20.0,129.92,129.9,7.6981]
[1725256144523,20.0,129.92,129.91,7.6976]
[1725256144754,20.0,129.92,129.82,15.5204]
[1725256144936,20.0,129.92,129.88,7.6992]
[1725256144937,23.98206638,129.9,129.88,7.6992]
[1725256145634,23.98206638,129.9,129.87,7.6999]
[1725256146753,23.98206638,129.9,129.88,7.6991]
[1725256147246,23.98206638,129.9,129.87,7.6998]
[1725256147851,23.98206638,129.9,129.88,7.6992]
[1725256148356,43.98206638,129.92,129.89,7.6987]
[1725256149138,43.98206638,129.92,129.88,7.6993]
[1725256149974,23.98206638,129.92,129.88,19.2477]
[1725256150259,23.98206638,129.92,129.9,7.6982]
[1725256151136,23.98206638,129.92,129.89,7.6987]
[1725256151342,23.98206638,129.92,129.88,26.9471]
[1725256151554,23.98206638,129.92,129.88,19.2477]
[1725256153267,23.98206638,129.92,129.89,7.6987]
[1725256155665,23.98206638,129.92,129.89,7.6985]
[1725256157667,0.12549,129.91,129.88,26.9469]
[1725256159075,23.98206638,129.92,129.88,26.9469]
[1725256159971,0.12549,129.91,129.88,26.9469]
[1725256160349,0.25098,129.91,129.88,26.9469]
[1725256161445,7.6966,129.93,129.88,26.9469]
[1725256161651,20.0,129.92,129.89,7.6987]
[1725256161851,43.98206638,129.92,129.89,7.6987]
[1725256163465,43.98206638,129.92,129.88,26.9469]
[1725256165049,43.98206638,129.92,129.89,7.6987]
[1725256167271,43.98206638,129.92,129.85,19.2527]
[1725256167446,43.98206638,129.92,129.88,7.6992]
[1725256167447,0.25098,129.91,129.88,7.6992]
[1725256167645,23.98206638,129.9,129.87,19.2493]
[1725256168671,23.98206638,129.9,129.87,26.9492]
[1725256169473,0.12549,129.89,129.87,26.9492]
[1725256169883,20.12549,129.89,129.87,26.9492]
[1725256170184,20.0,129.89,129.87,19.2493]
[1725256171079,20.0,129.89,129.87,26.9492]
[1725256173582,20.0,129.89,129.87,19.2493]
[1725256173753,23.98206638,129.92,129.87,19.2493]
[1725256173958,20.0,129.91,129.87,19.2493]
[1725256174273,9.59221906,129.92,129.89,19.2463]
[1725256174461,9.59221906,129.92,129.91,7.6976]
[1725256174659,9.59221906,129.92,129.9,7.6981]
[1725256175277,9.59221906,129.92,129.89,26.945]
[1725256175853,9.59221906,129.9,129.87,7.6995]
[1725256176471,9.59221906,129.9,129.86,19.2509]
[1725256176760,9.59221906,129.9,129.86,26.951]
[1725256177271,9.59221906,129.88,129.83,19.2553]
[1725256177978,23.99350593,129.9,129.83,19.2553]
[1725256178173,20.25098,129.89,129.83,19.2553]
[1725256178388,20.12549,129.89,129.85,7.7011]
[1725256178564,20.12549,129.89,129.86,7.7001]
[1725256178565,20.0,129.89,129.86,7.7001]
[1725256178756,20.0,129.9,129.86,7.7001]
[1725256179583,23.99350593,129.92,129.88,7.6992]
[1725256179768,20.0,129.91,129.88,7.6992]
[1725256179968,23.99350593,129.9,129.82,15.5204]
[1725256180175,23.99350593,129.86,129.78,15.15]
[1725256180480,31.69410593,129.86,129.78,34.4128]
[1725256180670,23.99350593,129.86,129.82,7.7029]
[1725256180874,31.69410593,129.86,129.8,19.2593]
[1725256181081,23.99350593,129.86,129.81,7.703]
[1725256181578,23.99350593,129.86,129.82,7.7028]
[1725256183490,23.99350593,129.84,129.77,19.2644]
[1725256183702,23.99350593,129.81,129.75,16.518]
[1725256183897,20.12549,129.8,129.75,7.707]
[1725256184187,20.25098,129.8,129.75,7.707]
[1725256184371,23.99350593,129.79,129.75,7.707]
[1725256184767,7.7054,129.78,129.72,7.7088]
[1725256184968,24.11899593,129.77,129.72,7.7088]
[1725256185269,0.12549,129.76,129.72,7.7088]
[1725256185887,24.11899593,129.77,129.72,7.7088]
[1725256186681,24.11899593,129.77,129.71,19.2736]
[1725256186882,0.12549,129.76,129.71,19.2736]
[1725256187079,20.12549,129.76,129.71,26.983]
[1725256187887,6.21559,129.75,129.65,22.2811]
[1725256188083,23.99350593,129.73,129.67,19.2784]
[1725256188271,20.0,129.72,129.67,19.2784]
[1725256188461,0.12549,129.71,129.67,19.2784]
[1725256188667,0.12549,129.71,129.65,7.713]
[1725256188668,23.99350593,129.69,129.65,7.713]
[1725256188868,23.99350593,129.69,129.64,26.9974]
[1725256189084,23.99350593,129.67,129.62,7.7148]
[1725256189302,20.0,129.66,129.62,7.7148]
[1725256189674,30.08360593,129.71,129.64,7.7136]
[1725256189984,30.08360593,129.71,129.63,19.2853]
[1725256189985,27.83579,129.7,129.65,7.713]
[1725256190384,20.12549,129.7,129.65,7.7129]
[1725256190689,30.08360593,129.71,129.66,7.7124]
[1725256190899,20.12549,129.7,129.64,7.7131]
[1725256191584,20.12549,129.7,129.65,7.7127]
[1725256193875,20.0,129.7,129.66,7.7124]
[1725256194079,20.0,129.71,129.64,16.5949]
[1725256194277,20.0,129.72,129.64,16.5949]
[1725256194971,7.7095,129.71,129.66,7.7122]
[1725256195180,20.0,129.7,129.65,7.713]
[1725256195491,20.0,129.7,129.64,16.5949]
[1725256195692,0.25098,129.69,129.64,16.5949]
[1725256196196,0.12549,129.69,129.64,16.5949]
[1725256196369,38.03988301,129.69,129.63,26.9995]
[1725256196570,20.0,129.68,129.63,26.9995]
[1725256197797,27.7113,129.68,129.63,26.9995]
[1725256197994,20.0,129.68,129.63,26.9995]
[1725256199206,7.713,129.66,129.6,7.716]
[1725256199373,36.56859301,129.67,129.6,7.716]
[1725256199374,20.25098,129.65,129.6,7.716]
[1725256199868,0.25098,129.65,129.6,7.716]
[1725256200064,20.0,129.66,129.6,7.716]
[1725256200267,27.7124,129.66,129.6,7.716]
[1725256200465,27.7124,129.66,129.59,19.2901]
[1725256200466,0.25098,129.65,129.59,19.2901]
[1725256200672,20.0,129.66,129.62,19.2866]
[1725256200891,20.0,129.66,129.62,27.0014]
[1725256201878,20.0,129.66,129.62,19.2866]
[1725256202071,20.0,129.67,129.62,19.2866]
[1725256202268,20.0,129.67,129.62,27.0009]
[1725256202475,20.0,129.67,129.63,7.7142]
[1725256202669,20.0,129.67,129.62,19.2866]
[1725256202878,20.0,129.67,129.64,7.7135]
[1725256203094,20.0,129.68,129.64,7.7135]
[1725256203396,27.7115,129.68,129.62,27.0011]
[1725256203696,30.07790301,129.66,129.58,19.292]
[1725256203905,27.7131,129.65,129.59,7.7164]
[1725256204404,27.7131,129.65,129.6,7.7159]
[1725256204783,20.0,129.65,129.61,7.7153]
[1725256205199,30.07790301,129.68,129.61,7.7153]
[1725256205200,27.7124,129.66,129.61,7.7153]
[1725256206696,20.0,129.66,129.62,7.7147]
[1725256206892,20.0,129.66,129.63,7.7141]
[1725256207213,30.07790301,129.78,129.6,19.2891]
[1725256207214,19.2853,129.73,129.68,7.7111]
[1725256207393,30.07790301,129.72,129.67,7.7114]
[1725256207591,30.07790301,129.72,129.66,26.9922]
[1725256208497,7.7099,129.71,129.66,26.9922]
[1725256208808,50.07790301,129.7,129.63,19.2852]
[1725256209001,0.12549,129.69,129.63,19.2852]
[1725256209202,0.25098,129.69,129.63,19.2852]
[1725256209603,51.40790301,129.68,129.62,7.7147]
[1725256209808,30.07790301,129.68,129.64,7.7131]
[1725256210115,20.0,129.7,129.64,19.2829]
[1725256210310,6.0811,129.75,129.71,7.7092]
[1725256210614,13.7882,129.75,129.7,7.71]
[1725256210984,7.7078,129.74,129.69,19.2764]
[1725256211411,7.7078,129.74,129.69,26.9865]
[1725256211710,27.7083,129.73,129.69,19.2764]
[1725256211906,0.12549,129.72,129.65,6.4961]
[1725256212119,7.95998,129.72,129.65,6.4961]
[1725256212316,7.95998,129.72,129.67,7.7118]
[1725256212541,27.7095,129.71,129.64,19.2834]
[1725256212817,7.7119,129.67,129.63,16.4784]
[1725256213003,0.12549,129.7,129.63,16.4784]
[1725256213194,0.12549,129.7,129.66,7.7123]
[1725256213904,27.7097,129.71,129.66,7.7123]
[1725256214306,7.7102,129.7,129.65,7.7126]
[1725256214507,20.0,129.69,129.65,7.7126]
[1725256214907,20.0,129.69,129.63,16.4784]
[1725256215218,7.7114,129.68,129.63,24.1926]
[1725256215600,7.7114,129.68,129.63,7.7142]
[1725256215801,7.7121,129.67,129.61,25.3655]
[1725256216097,7.7113,129.68,129.63,7.714]
[1725256216292,20.0,129.67,129.63,7.714]
[1725256218628,20.0,129.67,129.63,19.2846]
[1725256218846,27.7105,129.7,129.65,7.7129]
[1725256219034,7.7107,129.69,129.65,7.7129]
[1725256219353,20.0,129.68,129.64,7.7136]
[1725256219713,27.7113,129.68,129.64,7.7136]
[1725256220032,20.0,129.68,129.64,7.7136]
[1725256220225,20.0,129.69,129.64,7.7136]
[1725256220643,27.7111,129.69,129.64,7.7136]
[1725256221838,20.0,129.69,129.65,7.7129]
[1725256222048,20.0,129.69,129.66,7.7123]
[1725256224117,20.0,129.69,129.65,7.713]
[1725256224523,20.0,129.69,129.66,7.7122]
[1725256224724,27.7102,129.7,129.66,7.7122]
[1725256224933,0.12549,129.69,129.63,7.7141]
[1725256225137,30.32888301,129.69,129.63,7.7141]
[1725256225318,20.0,129.68,129.63,7.7141]
[1725256226020,20.0,129.68,129.62,19.2864]
[1725256226246,7.96278,129.67,129.62,27.0007]
[1725256226430,7.83729,129.67,129.62,27.0007]
[1725256226936,27.7113,129.68,129.63,7.7137]
[1725256227364,7.83759,129.67,129.62,27.0011]
[1725256227643,27.7114,129.68,129.63,7.7142]
[1725256227839,7.7119,129.67,129.63,7.7142]
[1725256228843,7.7119,129.67,129.62,27.0012]
[1725256231322,31.78360289,129.65,129.6,15.8789]
[1725256231651,20.0,129.66,129.59,19.2908]
[1725256231874,2.18540389,129.71,129.58,6.1659]
[1725256231875,6.1924,129.73,129.61,39.19070289]
[1725256232034,31.77730289,129.75,129.69,7.7101]
[1725256232447,7.7079,129.74,129.69,7.7101]
[1725256233331,20.0,129.73,129.69,7.7101]
[1725256233858,20.0,129.73,129.71,7.709]
[1725256234052,7.7068,129.76,129.71,7.709]
[1725256234241,45.90430289,129.77,129.71,7.709]
[1725256234450,30.26250289,129.77,129.71,7.709]
[1725256235254,24.07010289,129.77,129.72,7.7087]
[1725256235434,7.7054,129.78,129.72,7.7087]
[1725256235842,20.0,129.77,129.72,7.7087]
[1725256236272,20.0,129.77,129.73,7.708]
[1725256236567,7.7042,129.8,129.75,7.7069]
[1725256236744,7.7054,129.78,129.73,23.2799]
[1725256237052,7.7066,129.76,129.72,19.2708]
[1725256238262,7.7071,129.75,129.7,7.7099]
[1725256238655,7.7071,129.75,129.69,42.8238]
[1725256238854,7.7083,129.73,129.69,35.1133]
[1725256239048,30.04204757,129.73,129.66,15.8351]
[1725256239352,30.04204757,129.73,129.64,6.1213]
[1725256239353,7.7106,129.7,129.64,6.1213]
[1725256239939,7.7106,129.7,129.62,15.8351]
[1725256239940,50.29302757,129.69,129.62,35.1219]
[1725256240253,7.7124,129.67,129.62,35.1219]
[1725256240453,20.0,129.66,129.62,35.1219]
[1725256241260,20.0,129.66,129.62,42.8367]
[1725256245551,36.50484757,129.71,129.65,19.2824]
[1725256245754,6.4628,129.71,129.65,19.2824]
[1725256246457,36.50484757,129.71,129.65,19.2824]
[1725256247153,37.75324757,129.69,129.64,7.7136]
[1725256247348,20.0,129.68,129.64,7.7136]
[1725256249687,7.7119,129.67,129.62,42.8364]
[1725256249853,27.7125,129.66,129.61,7.7154]
[1725256250180,36.50484757,129.71,129.67,7.7117]
[1725256250376,36.50484757,129.71,129.6,38.5792]
[1725256250377,30.04204757,129.73,129.61,30.04204757]
[1725256250546,30.04204757,129.73,129.67,19.2783]
[1725256251568,30.04204757,129.73,129.67,26.9901]
[1725256251776,7.7095,129.71,129.67,19.2783]
[1725256252171,20.0,129.7,129.67,19.2783]
[1725256253467,20.0,129.7,129.67,26.9901]
[1725256253778,20.0,129.72,129.68,7.7112]
[1725256254068,20.0,129.72,129.67,19.2783]
[1725256255051,0.25098,129.71,129.67,19.2783]
[1725256255255,7.96048,129.71,129.67,19.2783]
[1725256255469,20.0,129.7,129.67,19.2783]
[1725256255774,7.7113,129.68,129.62,16.1271]
[1725256255981,7.7113,129.68,129.63,7.7141]
[1725256257557,20.0,129.7,129.65,7.713]
[1725256258884,27.7105,129.7,129.65,7.713]
[1725256260173,7.7107,129.69,129.65,7.713]
[1725256260376,20.0,129.68,129.64,7.7135]
[1725256261463,20.0,129.68,129.65,26.9955]
[1725256261767,20.0,129.69,129.65,26.9955]
[1725256261976,24.0628843,129.73,129.67,19.2788]
[1725256262181,31.7712843,129.73,129.69,7.7106]
[1725256262386,31.7712843,129.73,129.67,19.2788]
[1725256262683,31.7712843,129.73,129.68,7.7111]
[1725256263064,31.7712843,129.73,129.64,38.5678]
[1725256263065,6.5236,129.75,129.71,7.7091]
[1725256263263,24.0628843,129.77,129.7,19.2743]
[1725256263986,31.7692843,129.77,129.72,7.7087]
[1725256264190,15.047,129.78,129.69,15.4706]
[1725256264365,30.4046843,129.79,129.74,26.9749]
[1725256264563,7.7076,129.75,129.7,26.9839]
[1725256264764,24.0628843,129.77,129.7,26.9839]
[1725256265292,7.7065,129.76,129.71,7.7092]
[1725256266081,51.8954743,129.75,129.7,26.984]
[1725256266478,44.0628843,129.75,129.71,7.7094]
[1725256266681,20.0,129.75,129.71,7.7094]
[1725256268065,27.7073,129.75,129.7,26.984]
[1725256269498,24.0628843,129.77,129.67,16.0795]
[1725256269787,6.3418,129.79,129.72,19.2711]
[1725256269788,30.4046843,129.79,129.72,19.2711]
[1725256269991,20.0,129.78,129.74,7.7075]
[1725256270488,27.7056,129.78,129.73,7.7082]
[1725256271389,24.0628843,129.77,129.72,19.2711]
[1725256271699,20.0,129.76,129.69,19.2763]
[1725256273182,27.707,129.76,129.71,7.7094]
[1725256274593,7.7071,129.75,129.71,7.7094]
[1725256274800,7.7071,129.75,129.7,7.71]
[1725256275365,31.7699843,129.75,129.7,7.71]
[1725256275792,31.7699843,129.75,129.71,7.7094]
[1725256275998,7.7071,129.75,129.71,7.7094]
[1725256276377,7.7071,129.75,129.7,7.7099]
[1725256276571,24.0628843,129.74,129.66,19.2805]
[1725256276783,7.7095,129.71,129.66,26.9929]
[1725256277971,7.7095,129.71,129.67,7.7118]
[1725256279600,7.7095,129.71,129.66,26.9928]
[1725256279804,7.7103,129.7,129.66,19.2805]
[1725256279975,7.7103,129.7,129.65,7.7129]
[1725256279976,24.0628843,129.68,129.6,16.6524]
[1725256280178,7.7119,129.67,129.6,16.6524]
[1725256280497,24.0628843,129.68,129.6,16.6524]
[1725256280498,24.0628843,129.68,129.61,38.5764]
[1725256280706,26.26799,129.73,129.61,38.5764]
[1725256281013,24.0628843,129.72,129.61,62.6392843]
[1725256281293,20.0,129.71,129.61,62.6392843]
[1725256281674,20.0,129.71,129.66,19.2803]
[1725256282097,7.7101,129.7,129.66,19.2803]
[1725256282280,20.0,129.69,129.66,26.9927]
[1725256282610,27.7095,129.71,129.66,26.9926]
[1725256284492,31.7717843,129.72,129.66,19.2803]
[1725256285309,31.7717843,129.72,129.68,7.7112]
[1725256285973,20.0,129.71,129.68,7.7112]
[1725256286507,24.0628843,129.7,129.66,19.2803]
[1725256286679,20.0,129.69,129.65,7.7125]
[1725256288408,20.0,129.69,129.66,7.7123]
[1725256288706,20.0,129.71,129.67,7.7117]
[1725256288909,6.1425,129.73,129.67,19.2787]
[1725256289088,7.7091,129.72,129.67,26.99]
[1725256289608,13.8508,129.73,129.68,7.7109]
[1725256289909,13.8508,129.73,129.69,7.7105]
[1725256290293,20.0,129.72,129.69,7.7105]
[1725256291106,20.0,129.72,129.71,7.7095]
[1725256291298,20.0,129.72,129.7,19.2748]
[1725256291603,51.7717843,129.72,129.67,26.991]
[1725256291806,7.7096,129.71,129.67,19.2793]
[1725256292011,20.0,129.7,129.67,19.2793]
[1725256293485,6.1425,129.73,129.67,19.2793]
[1725256293712,39.8187843,129.74,129.69,7.7106]
[1725256293713,31.7706843,129.74,129.69,7.7106]
[1725256294020,24.0628843,129.74,129.7,7.7099]
[1725256294208,7.7072,129.75,129.7,7.7099]
[1725256295114,27.708,129.74,129.69,7.7106]
[1725256295611,44.0628843,129.74,129.68,7.7112]
[1725256295791,31.7721843,129.72,129.67,26.991]
[1725256295986,31.7721843,129.72,129.65,6.163]
[1725256295987,20.0,129.71,129.65,6.163]
[1725256296190,20.0,129.71,129.67,7.7113]
[1725256296487,27.7095,129.71,129.67,7.7113]
[1725256296997,27.7097,129.71,129.66,26.9929]
[1725256297206,24.0628843,129.7,129.66,19.2805]
[1725256298291,31.7734843,129.7,129.66,19.2805]
[1725256299910,7.7113,129.68,129.63,23.8319]
[1725256300091,24.0628843,129.7,129.63,16.118]
[1725256300287,31.7729843,129.7,129.65,7.7125]
[1725256300514,31.7729843,129.7,129.66,7.7124]
[1725256303391,26.1694,129.71,129.66,7.7124]
[1725256303392,33.8789,129.71,129.66,7.7124]
[1725256305800,20.0,129.71,129.69,7.7106]
[1725256306105,20.0,129.72,129.69,7.7106]
[1725256306311,30.724385,129.81,129.71,7.7093]
[1725256306312,22.8649,129.77,129.71,7.7093]
[1725256306624,7.7067,129.76,129.71,7.7093]
[1725256307002,7.7067,129.76,129.69,19.2755]
[1725256307003,24.0628843,129.76,129.69,26.9856]
[1725256307320,7.7077,129.74,129.69,26.9856]
[1725256308111,7.7077,129.74,129.7,7.7099]
[1725256310304,31.7699843,129.76,129.7,7.7099]
[1725256310503,20.0,129.75,129.71,7.7095]
[1725256310998,20.0,129.75,129.7,7.7099]
[1725256310999,27.7071,129.75,129.7,7.7099]
[1725256311725,27.7071,129.75,129.71,7.7094]
[1725256312210,20.0,129.75,129.72,7.7088]
[1725256313296,20.0,129.75,129.73,7.708]
[1725256313592,20.0,129.76,129.72,19.2716]
[1725256313796,20.0,129.76,129.72,26.9804]
[1725256314306,27.7065,129.76,129.72,26.9804]
[1725256315003,0.12549,129.75,129.69,26.9866]
[1725256315215,0.12549,129.75,129.7,7.71]
[1725256315216,7.83269,129.75,129.7,7.71]
[1725256315397,7.83269,129.75,129.69,19.2764]
[1725256315398,27.7078,129.74,129.69,19.2764]
[1725256315603,20.0,129.74,129.7,7.71]
[1725256315908,7.7072,129.75,129.7,7.71]
[1725256316219,20.0,129.74,129.71,7.7093]
[1725256316522,27.7067,129.76,129.72,19.272]
[1725256317619,27.7067,129.76,129.72,26.9807]
[1725256319422,27.7067,129.76,129.72,19.272]
[1725256319821,6.6615,129.78,129.75,7.7071]
[1725256319999,6.6615,129.78,129.74,26.976]
[1725256320205,20.0,129.77,129.74,19.2685]
[1725256320728,44.0628843,129.77,129.71,19.273]
[1725256320896,44.0628843,129.77,129.7,7.7096]
[1725256321227,7.7071,129.75,129.7,7.7096]
[1725256321397,7.7071,129.75,129.68,35.7668]
[1725256321398,24.0628843,129.75,129.68,35.7668]
[1725256321598,7.7084,129.73,129.68,43.4778]
[1725256321799,7.7078,129.74,129.69,7.7105]
[1725256322301,7.7083,129.73,129.68,43.478]
[1725256322612,27.7083,129.73,129.68,43.478]
[1725256323819,20.0,129.73,129.69,7.7102]